fUST/lending_fUST_20240412
["ID","MTS","AMOUNT","RATE_DAILY","PERIOD"]
[322224979,1712893833678,-505.01318025,0.00027397,2]
[322224982,1712893833686,-500.0,0.00027397,2]
[322224984,1712893833696,-500.0,0.00027397,2]
[322224986,1712893833705,-500.0,0.00027397,2]
[322224988,1712893833719,-500.0,0.00027397,2]
[322224990,1712893833728,-500.0,0.00027397,2]
[322224992,1712893833737,-500.0,0.00027397,2]
[322224994,1712893833746,-500.0,0.00027397,2]
[322224996,1712893833756,-500.0,0.00027397,2]
[322224998,1712893833766,-404.54313,0.00027397,2]
[322225000,1712893833775,-522.30695019,0.00027397,2]
[322225002,1712893833784,-503.82926278,0.00027397,2]
[322225004,1712893833795,-505.77122338,0.00027397,2]
[322225006,1712893833805,-500.0,0.00027397,2]
[322225008,1712893833814,-1016.84,0.00027397,2]
[322225010,1712893833823,-500.0,0.00027397,2]
[322225012,1712893833833,-2377.43,0.00027397,2]
[322225014,1712893833842,-1451.73,0.00027397,2]
[322225016,1712893833851,-500.0,0.00027397,2]
[322225018,1712893833861,-500.0,0.00027397,2]
[322225020,1712893833870,-500.0,0.00027397,2]
[322225022,1712893833879,-504.66784789,0.00027397,2]
[322225024,1712893833888,-500.0,0.00027397,2]
[322225026,1712893833898,-1370.17,0.00027397,2]
[322225028,1712893833907,-451.64015588,0.00027397,2]
[322225030,1712893833916,-1158.67,0.00027397,2]
[322225032,1712893833925,-287.05631202,0.00027397,2]
[322225034,1712893833933,-508.61,0.00027397,2]
[322225036,1712893833942,-500.0,0.00027397,2]
[322225038,1712893833951,-500.0,0.00027397,2]
[322225040,1712893833960,-295.21692897,0.00027397,2]
[322225042,1712893833969,-1411.83,0.00027397,2]
[322225044,1712893833978,-503.45770841,0.00027397,2]
[322225046,1712893833987,-330.68947975,0.00027397,2]
[322225048,1712893833996,-500.0,0.00027397,2]
[322225050,1712893834005,-1223.65,0.00027397,2]
[322225052,1712893834014,-4839.75,0.00027397,2]
[322225054,1712893834023,-500.0,0.00027397,2]
[322225056,1712893834032,-1347.64,0.00027397,2]
[322225058,1712893834041,-500.0,0.00027397,2]
[322225060,1712893834050,-1131.69,0.00027397,2]
[322225062,1712893834060,-550.54839668,0.00027397,2]
[322225064,1712893834069,-203.78285017,0.00027397,2]
[322225066,1712893834078,-14759.29,0.00027397,2]
[322225068,1712893834087,-500.0,0.00027397,2]
[322225070,1712893834097,-500.0,0.00027397,2]
[322225072,1712893834106,-500.0,0.00027397,2]
[322225074,1712893834114,-508.49,0.00027397,2]
[322225076,1712893834123,-500.0,0.00027397,2]
[322225078,1712893834133,-3064.27,0.00027397,2]
[322225080,1712893834142,-500.0,0.00027397,2]
[322225082,1712893834151,-500.0,0.00027397,2]
[322225084,1712893834160,-522.2463754,0.00027397,2]
[322225086,1712893834169,-1150.42,0.00027397,2]
[322225088,1712893834179,-500.0,0.00027397,2]
[322225090,1712893834187,-500.0,0.00027397,2]
[322225092,1712893834196,-691.08,0.00027397,2]
[322225094,1712893834206,-506.08009644,0.00027397,2]
[322225096,1712893834215,-500.0,0.00027397,2]
[322225098,1712893834224,-509.38435769,0.00027397,2]
[322225100,1712893834233,-1074.71,0.00027397,2]
[322225102,1712893834242,-500.0,0.00027397,2]
[322225104,1712893834251,-506.483227,0.00027397,2]
[322225106,1712893834260,-2385.14,0.00027397,2]
[322225108,1712893834269,-500.0,0.00027397,2]
[322225110,1712893834278,-500.0,0.00027397,2]
[322225112,1712893834287,-500.0,0.00027397,2]
[322225114,1712893834296,-500.0,0.00027397,2]
[322225116,1712893834306,-500.0,0.00027397,2]
[322225118,1712893834315,-500.0,0.00027397,2]
[322225120,1712893834324,-526.80783919,0.00027397,2]
[322225122,1712893834333,-500.0,0.00027397,2]
[322225124,1712893834342,-518.4418908,0.00027397,2]
[322225126,1712893834351,-6452.91,0.00027397,2]
[322225128,1712893834360,-503.82075854,0.00027397,2]
[322225130,1712893834370,-1668.55,0.00027397,2]
[322225132,1712893834379,-552.56890725,0.00027397,2]
[322225134,1712893834388,-500.0,0.00027397,2]
[322225136,1712893834398,-500.0,0.00027397,2]
[322225137,1712893834407,-504.0,0.00027397,2]
[322225139,1712893834416,-1392.82,0.00027397,2]
[322225141,1712893834425,-500.0,0.00027397,2]
[322225143,1712893834434,-500.0,0.00027397,2]
[322225145,1712893834444,-500.0,0.00027397,2]
[322225147,1712893834453,-1550.4,0.00027397,2]
[322225149,1712893834463,-392.8149452,0.00027397,2]
[322225151,1712893834472,-500.0,0.00027397,2]
[322225154,1712893834482,-234.9988513,0.00027397,2]
[322225156,1712893834491,-4764.12,0.00027397,2]
[322225158,1712893834501,-500.0,0.00027397,2]
[322225159,1712893834511,-500.0,0.00027397,2]
[322225161,1712893834520,-1412.23,0.00027397,2]
[322225164,1712893834530,-541.83882627,0.00027397,2]
[322225165,1712893834539,-3088.01,0.00027397,2]
[322225168,1712893834548,-401.77249553,0.00027397,2]
[322225170,1712893834559,-500.0,0.00027397,2]
[322225172,1712893834568,-12990.96,0.00027397,2]
[322225174,1712893834578,-500.0,0.00027397,2]
[322225176,1712893834587,-166.666666,0.00027397,2]
[322225178,1712893834597,-357.40406075,0.000274,2]
[322225180,1712893834606,-586.0,0.000274,2]
[322225182,1712893834615,-575.7207,0.000274,2]
[322225184,1712893834625,-707.10000002,0.00027571,2]
[322225186,1712893834634,-248.022397,0.00027669,2]
[322225188,1712893834643,-548.90126628,0.0002767,2]
[322225190,1712893834652,-831.46,0.00027671,2]
[322225192,1712893834661,-500.0,0.00027671,2]
[322225194,1712893834670,-500.0,0.00027671,2]
[322225195,1712893834682,-500.0,0.00027671,2]
[322225198,1712893834693,-506.5396431,0.00027671,2]
[322225199,1712893834704,-951.87,0.00027671,2]
[322225202,1712893834718,-500.0,0.00027671,2]
[322225204,1712893834727,-500.0,0.00027671,2]
[322225206,1712893834737,-506.78474358,0.00027671,2]
[322225208,1712893834746,-1583.37,0.00027671,2]
[322225209,1712893834756,-500.0,0.00027671,2]
[322225211,1712893834765,-500.0,0.00027671,2]
[322225213,1712893834775,-500.0,0.00027671,2]
[322225216,1712893834785,-500.0,0.00027671,2]
[322225217,1712893834794,-500.0,0.00027671,2]
[322225220,1712893834805,-500.0,0.00027671,2]
[322225222,1712893834814,-500.0,0.00027671,2]
[322225223,1712893834823,-500.0,0.00027671,2]
[322225225,1712893834832,-500.0,0.00027671,2]
[322225227,1712893834841,-500.0,0.00027671,2]
[322225229,1712893834851,-500.0,0.00027671,2]
[322225231,1712893834860,-500.0,0.00027671,2]
[322225233,1712893834869,-500.0,0.00027671,2]
[322225235,1712893834878,-500.0,0.00027671,2]
[322225246,1712893834967,-547.41,0.00027671,2]
[322225248,1712893834976,-500.0,0.00027671,2]
[322225250,1712893834985,-421.24252503,0.00027671,2]
[322225251,1712893834994,-1527.23,0.00027671,2]
[322225253,1712893835004,-500.0,0.00027671,2]
[322225255,1712893835013,-500.0,0.00027671,2]
[322225257,1712893835023,-500.0,0.00027671,2]
[322225259,1712893835032,-500.0,0.00027671,2]
[322225261,1712893835042,-500.0,0.00027671,2]
[322225263,1712893835051,-500.0,0.00027671,2]
[322225265,1712893835061,-500.0,0.00027671,2]
[322225267,1712893835070,-500.0,0.00027671,2]
[322225269,1712893835079,-505.88006956,0.00027671,2]
[322225271,1712893835088,-1257.34,0.00027671,2]
[322225273,1712893835098,-500.0,0.00027671,2]
[322225275,1712893835107,-500.0,0.00027671,2]
[322225277,1712893835118,-500.0,0.00027671,2]
[322225279,1712893835141,-500.0,0.00027671,2]
[322225281,1712893835184,-831.38,0.00027671,2]
[322225283,1712893835237,-501.519856,0.00027671,2]
[322225285,1712893835284,-1194.44,0.00027671,2]
[322225287,1712893835294,-500.0,0.00027671,2]
[322225289,1712893835304,-500.0,0.00027671,2]
[322225291,1712893835316,-779.45,0.00027671,2]
[322225293,1712893835325,-500.0,0.00027671,2]
[322225295,1712893835335,-500.0,0.00027671,2]
[322225297,1712893835344,-504.84781134,0.00027671,2]
[322225299,1712893835354,-500.0,0.00027671,2]
[322225301,1712893835364,-500.0,0.00027671,2]
[322225303,1712893835373,-503.27393618,0.00027671,2]
[322225305,1712893835382,-600.09944698,0.00027671,2]
[322225306,1712893835392,-193.86447824,0.00027671,2]
[322225308,1712893835401,-500.0,0.00027671,2]
[322225310,1712893835410,-500.0,0.00027671,2]
[322225312,1712893835420,-500.0,0.00027671,2]
[322225314,1712893835430,-1016.84,0.00027671,2]
[322225315,1712893835439,-500.0,0.00027671,2]
[322225317,1712893835449,-2377.43,0.00027671,2]
[322225319,1712893835459,-1451.73,0.00027671,2]
[322225321,1712893835468,-500.0,0.00027671,2]
[322225322,1712893835477,-500.0,0.00027671,2]
[322225324,1712893835487,-500.0,0.00027671,2]
[322225326,1712893835496,-1370.17,0.00027671,2]
[322225328,1712893835506,-1158.67,0.00027671,2]
[322225330,1712893835515,-508.61,0.00027671,2]
[322225331,1712893835524,-500.0,0.00027671,2]
[322225332,1712893835534,-303.2517849,0.00027671,2]
[322225334,1712893835544,-1411.83,0.00027671,2]
[322225336,1712893835553,-507.58439921,0.00027671,2]
[322225338,1712893835564,-1223.65,0.00027671,2]
[322225339,1712893835574,-4839.75,0.00027671,2]
[322225340,1712893835583,-500.0,0.00027671,2]
[322225341,1712893835592,-1347.64,0.00027671,2]
[322225342,1712893835601,-1131.69,0.00027671,2]
[322225343,1712893835610,-14759.29,0.00027671,2]
[322225344,1712893835620,-510.5201118,0.00027671,2]
[322225345,1712893835629,-500.0,0.00027671,2]
[322225346,1712893835638,-500.0,0.00027671,2]
[322225347,1712893835647,-508.49,0.00027671,2]
[322225348,1712893835656,-500.0,0.00027671,2]
[322225349,1712893835666,-3064.27,0.00027671,2]
[322225350,1712893835676,-1150.42,0.00027671,2]
[322225351,1712893835685,-500.0,0.00027671,2]
[322225352,1712893835695,-500.0,0.00027671,2]
[322225353,1712893835705,-691.08,0.00027671,2]
[322225354,1712893835719,-500.0,0.00027671,2]
[322225355,1712893835729,-500.0,0.00027671,2]
[322225356,1712893835738,-1074.71,0.00027671,2]
[322225357,1712893835747,-2385.14,0.00027671,2]
[322225358,1712893835758,-313.91429387,0.00027671,2]
[322225359,1712893835767,-500.0,0.00027671,2]
[322225360,1712893835776,-6452.91,0.00027671,2]
[322225361,1712893835787,-1668.55,0.00027671,2]
[322225362,1712893835797,-500.0,0.00027671,2]
[322225363,1712893835807,-1392.82,0.00027671,2]
[322225364,1712893835816,-334.29840605,0.00027671,2]
[322225365,1712893835826,-507.52533669,0.00027671,2]
[322225366,1712893835835,-500.0,0.00027671,2]
[322225367,1712893835845,-1550.4,0.00027671,2]
[322225368,1712893835854,-500.0,0.00027671,2]
[322225369,1712893835863,-4764.12,0.00027671,2]
[322225370,1712893835873,-436.88796623,0.00027671,2]
[322225371,1712893835883,-500.0,0.00027671,2]
[322225372,1712893835892,-1412.23,0.00027671,2]
[322225373,1712893835902,-3088.01,0.00027671,2]
[322225374,1712893835911,-500.0,0.00027671,2]
[322225375,1712893835920,-12990.96,0.00027671,2]
[322225376,1712893835929,-458.8238478,0.00027781,2]
[322225377,1712893835939,-177.0,0.000279,2]
[322225378,1712893835949,-575.7207,0.000279,2]
[322225379,1712893835959,-261.83147122,0.00027943,2]
[322225380,1712893835968,-255.27288194,0.00027943,2]
[322225381,1712893835977,-831.46,0.00027945,2]
[322225382,1712893835987,-500.0,0.00027945,2]
[322225383,1712893835997,-500.0,0.00027945,2]
[322225384,1712893836006,-951.87,0.00027945,2]
[322225385,1712893836015,-500.0,0.00027945,2]
[322225386,1712893836024,-500.0,0.00027945,2]
[322225387,1712893836033,-1583.37,0.00027945,2]
[322225388,1712893836043,-500.0,0.00027945,2]
[322225389,1712893836052,-500.0,0.00027945,2]
[322225390,1712893836063,-500.0,0.00027945,2]
[322225391,1712893836072,-504.864169,0.00027945,2]
[322225392,1712893836082,-500.0,0.00027945,2]
[322225393,1712893836094,-500.0,0.00027945,2]
[322225394,1712893836103,-500.0,0.00027945,2]
[322225395,1712893836113,-500.0,0.00027945,2]
[322225396,1712893836122,-500.0,0.00027945,2]
[322225397,1712893836131,-500.0,0.00027945,2]
[322225398,1712893836141,-500.0,0.00027945,2]
[322225399,1712893836150,-547.41,0.00027945,2]
[322225400,1712893836159,-500.0,0.00027945,2]
[322225401,1712893836168,-1527.23,0.00027945,2]
[322225402,1712893836182,-500.0,0.00027945,2]
[322225403,1712893836191,-500.0,0.00027945,2]
[322225404,1712893836200,-500.0,0.00027945,2]
[322225405,1712893836210,-500.0,0.00027945,2]
[322225406,1712893836220,-500.0,0.00027945,2]
[322225407,1712893836229,-500.0,0.00027945,2]
[322225408,1712893836239,-500.0,0.00027945,2]
[322225409,1712893836249,-1257.34,0.00027945,2]
[322225410,1712893836258,-500.0,0.00027945,2]
[322225411,1712893836268,-500.0,0.00027945,2]
[322225412,1712893836278,-411.42653899,0.00027945,2]
[322225413,1712893836288,-831.38,0.00027945,2]
[322225414,1712893836297,-1194.44,0.00027945,2]
[322225415,1712893836308,-500.0,0.00027945,2]
[322225416,1712893836317,-779.45,0.00027945,2]
[322225417,1712893836327,-500.0,0.00027945,2]
[322225418,1712893836336,-500.0,0.00027945,2]
[322225419,1712893836346,-500.0,0.00027945,2]
[322225420,1712893836355,-500.0,0.00027945,2]
[322225421,1712893836364,-1016.84,0.00027945,2]
[322225422,1712893836374,-500.0,0.00027945,2]
[322225423,1712893836383,-2377.43,0.00027945,2]
[322225424,1712893836393,-1451.73,0.00027945,2]
[322225425,1712893836402,-500.0,0.00027945,2]
[322225426,1712893836411,-500.0,0.00027945,2]
[322225427,1712893836421,-565.27541296,0.00027945,2]
[322225428,1712893836431,-1370.17,0.00027945,2]
[322225429,1712893836440,-1158.67,0.00027945,2]
[322225430,1712893836449,-508.61,0.00027945,2]
[322225431,1712893836458,-505.44309587,0.00027945,2]
[322225432,1712893836468,-1411.83,0.00027945,2]
[322225433,1712893836477,-1223.65,0.00027945,2]
[322225434,1712893836486,-4839.75,0.00027945,2]
[322225435,1712893836495,-500.0,0.00027945,2]
[322225436,1712893836504,-1347.64,0.00027945,2]
[322225437,1712893836514,-1131.69,0.00027945,2]
[322225438,1712893836523,-11028.32564393,0.00027945,2]
[322225439,1712893836540,-662.522584,0.00027945,2]
[322225440,1712893836552,-3068.44177207,0.00027945,2]
[322225441,1712893836562,-500.0,0.00027945,2]
[322225442,1712893836571,-500.0,0.00027945,2]
[322225443,1712893836580,-508.49,0.00027945,2]
[322225444,1712893836589,-500.0,0.00027945,2]
[322225445,1712893836598,-3064.27,0.00027945,2]
[322225446,1712893836608,-1150.42,0.00027945,2]
[322225447,1712893836617,-500.0,0.00027945,2]
[322225448,1712893836626,-500.0,0.00027945,2]
[322225449,1712893836636,-691.08,0.00027945,2]
[322225450,1712893836645,-500.0,0.00027945,2]
[322225451,1712893836654,-500.0,0.00027945,2]
[322225452,1712893836663,-1074.71,0.00027945,2]
[322225453,1712893836672,-2385.14,0.00027945,2]
[322225454,1712893836682,-500.0,0.00027945,2]
[322225455,1712893836691,-6452.91,0.00027945,2]
[322225456,1712893836700,-1668.55,0.00027945,2]
[322225457,1712893836710,-500.0,0.00027945,2]
[322225458,1712893836722,-1392.82,0.00027945,2]
[322225459,1712893836731,-500.0,0.00027945,2]
[322225460,1712893836741,-1550.4,0.00027945,2]
[322225461,1712893836750,-500.0,0.00027945,2]
[322225462,1712893836761,-4764.12,0.00027945,2]
[322225463,1712893836770,-500.0,0.00027945,2]
[322225464,1712893836779,-1412.23,0.00027945,2]
[322225465,1712893836789,-3088.01,0.00027945,2]
[322225466,1712893836801,-500.0,0.00027945,2]
[322225467,1712893836812,-12990.96,0.00027945,2]
[322225468,1712893836821,-306.30438345,0.00028,2]
[322225469,1712893836830,-20388.1192847,0.00028,4]
[322225470,1712893836839,-166.666666,0.00028038,2]
[322225471,1712893836849,-167.74248845,0.00028217,2]
[322225472,1712893836858,-150.0,0.00028218,2]
[322225473,1712893836868,-831.46,0.00028219,2]
[322225474,1712893836877,-531.22,0.00028219,2]
[322225475,1712893836887,-433.6804233,0.00028219,2]
[322225476,1712893836897,-951.87,0.00028219,2]
[322225477,1712893836906,-500.0,0.00028219,2]
[322225478,1712893836915,-503.97416205,0.00028219,2]
[322225479,1712893836925,-1583.37,0.00028219,2]
[322225480,1712893836935,-500.0,0.00028219,2]
[322225481,1712893836944,-500.0,0.00028219,2]
[322225482,1712893836954,-500.0,0.00028219,2]
[322225483,1712893836963,-500.0,0.00028219,2]
[322225484,1712893836973,-500.0,0.00028219,2]
[322225485,1712893836983,-500.0,0.00028219,2]
[322225486,1712893836992,-500.0,0.00028219,2]
[322225487,1712893837002,-500.0,0.00028219,2]
[322225488,1712893837012,-522.4,0.00028219,2]
[322225489,1712893837022,-547.41,0.00028219,2]
[322225490,1712893837031,-500.0,0.00028219,2]
[322225491,1712893837042,-1527.23,0.00028219,2]
[322225492,1712893837051,-500.0,0.00028219,2]
[322225493,1712893837061,-500.0,0.00028219,2]
[322225494,1712893837071,-500.0,0.00028219,2]
[322225495,1712893837081,-500.0,0.00028219,2]
[322225496,1712893837090,-528.46260635,0.00028219,2]
[322225497,1712893837175,-500.0,0.00028219,2]
[322225498,1712893837185,-500.0,0.00028219,2]
[322225499,1712893837197,-1257.34,0.00028219,2]
[322225500,1712893837206,-549.85053194,0.00028219,2]
[322225501,1712893837215,-172.50814298,0.00028219,2]
[322225502,1712893837225,-831.38,0.00028219,2]
[322225503,1712893837234,-1194.44,0.00028219,2]
[322225504,1712893837244,-500.0,0.00028219,2]
[322225505,1712893837253,-779.45,0.00028219,2]
[322225506,1712893837262,-500.0,0.00028219,2]
[322225507,1712893837272,-500.0,0.00028219,2]
[322225508,1712893837281,-500.0,0.00028219,2]
[322225509,1712893837290,-500.0,0.00028219,2]
[322225510,1712893837299,-1016.84,0.00028219,2]
[322225511,1712893837309,-500.0,0.00028219,2]
[322225512,1712893837319,-2377.43,0.00028219,2]
[322225513,1712893837328,-1451.73,0.00028219,2]
[322225514,1712893837337,-316.91894813,0.00028219,2]
[322225515,1712893837431,-183.08105187,0.00028219,2]
[322225516,1712893837440,-500.0,0.00028219,2]
[322225517,1712893837450,-1370.17,0.00028219,2]
[322225518,1712893837460,-1158.67,0.00028219,2]
[322225519,1712893837469,-508.61,0.00028219,2]
[322225520,1712893837479,-1411.83,0.00028219,2]
[322225521,1712893837488,-1223.65,0.00028219,2]
[322225522,1712893837498,-4839.75,0.00028219,2]
[322225523,1712893837508,-500.0,0.00028219,2]
[322225524,1712893837517,-1347.64,0.00028219,2]
[322225525,1712893837527,-1131.69,0.00028219,2]
[322225526,1712893837536,-37.3797531,0.00028219,2]
[322225565,1712893839148,-150.318,0.00027344,2]
[322225566,1712893839157,-382.34249134,0.00027397,2]
[322225591,1712893843654,-12.09003571,0.00027397,2]
[322225592,1712893843664,-500.0,0.00027397,2]
[322225593,1712893843673,-1305.48941127,0.00027397,2]
[322225594,1712893843721,-675.70058873,0.00027397,2]
[322225595,1712893843732,-480.7454457,0.00027397,2]
[322225596,1712893843741,-1076.26929918,0.00027671,2]
[322225597,1712893843810,-2.43837282,0.00027671,2]
[322225598,1712893843830,-902.482328,0.00027671,2]
[322225599,1712893843839,-463.6231719,0.00027945,2]
[322225614,1712893846548,-920.97,0.00027397,2]
[322225618,1712894835158,-250.0,0.00024919,2]
[322225619,1712894835178,-1931.90571888,0.00024919,2]
[322225620,1712894835202,-1614.25770386,0.0002492,2]
[322225621,1712894835221,-2122.71055525,0.00024921,2]
[322225622,1712894835240,-154.82968734,0.00024922,2]
[322225623,1712894835260,-300.0,0.00024924,2]
[322225624,1712894835284,-35.47494525,0.00024924,2]
[322225625,1712894958107,-151.0,0.00024932,2]
[322225626,1712894958128,-151.0,0.00025,2]
[322225658,1712895032613,-250.0,0.00025458,2]
[322225659,1712895032623,-1076.17180257,0.00025458,2]
[322225660,1712895032633,-300.0,0.00025459,2]
[322225661,1712895032642,-187.08322723,0.00025459,2]
[322225674,1712895043836,-112.91677277,0.00025459,2]
[322225675,1712895043846,-1299.50086701,0.0002546,2]
[322225676,1712895043871,-500.9025,0.0002546,2]
[322225677,1712895043947,-322.30718824,0.0002546,2]
[322225678,1712895043957,-779.70370062,0.00025461,2]
[322225687,1712895046717,-848.48154778,0.00025461,2]
[322225688,1712895046726,-151.0,0.0002589,2]
[322225689,1712895046735,-158.0,0.00027185,2]
[322225690,1712895046744,-857.83938091,0.00027293,2]
[322225691,1712895048128,440.4742059,0.00024656,5]
[322225692,1712895051313,155.10744807,0.00025,2]
[322225693,1712895053043,254.17932287,0.00025,2]
[322225694,1712895056592,254.35963097,0.00025,2]
[322225695,1712895058867,197.55061894,0.00025,2]
[322225697,1712895975109,500.0,0.00023,10]
[322225698,1712896043123,-1931.90571888,0.00025954,2]
[322225699,1712896043146,-250.0,0.00025955,2]
[322225700,1712896043168,-154.82968734,0.00025955,2]
[322225701,1712896043190,-896.80983548,0.00025956,2]
[322225702,1712896043213,-361.13014743,0.00025957,2]
[322225703,1712896043234,-154.82968734,0.00025957,2]
[322225704,1712896043256,-522.7857071,0.00025958,4]
[322225705,1712896043279,-300.0,0.00025962,2]
[322225706,1712896043300,-300.0,0.00025962,2]
[322225707,1712896043322,-379.8005954,0.00025975,2]
[322225708,1712896043343,-175.620048,0.00026035,2]
[322225709,1712896043364,-4916.2382,0.00027,2]
[322225752,1712896231812,-467.23792428,0.00026998,2]
[322225754,1712896231821,-250.0,0.00026998,2]
[322225756,1712896231831,-300.0,0.00026998,2]
[322225758,1712896231840,-300.0,0.00026998,2]
[322225760,1712896231850,-5522.76207572,0.00026999,2]
[322225762,1712896231863,-1390.16902524,0.00026999,2]
[322225764,1712896231873,-5253.22262988,0.00027,2]
[322225766,1712896231884,-33201.68612095,0.00027,2]
[322225789,1712896232123,-1425.43705203,0.00027,2]
[322225791,1712896232136,-13303.06151783,0.00027,2]
[322226290,1712896237727,-341.51697593,0.00027,2]
[322226381,1712896238608,-4758.75157594,0.00027,2]
[322226415,1712896238902,-2429.71852867,0.00027,2]
[322226417,1712896238914,-3255.77058918,0.00027,2]
[322226419,1712896238926,-1346.71122239,0.00027,2]
[322226858,1712896242978,-1678.399999,0.00027,2]
[322226869,1712896243086,-873.88284604,0.00027,2]
[322227685,1712897440080,-250.0,0.00026228,2]
[322227686,1712897440090,-467.23792428,0.00026229,2]
[322227687,1712897440099,-937.6099038,0.00026234,2]
[322227688,1712897440108,-300.0,0.00026999,2]
[322227689,1712897440117,-4759.46052783,0.00027,2]
[322227690,1712897440137,-3830.747031,0.00027,2]
[322227691,1712897440192,-4001.38581581,0.00027,2]
[322227694,1712897443420,-65005.15389864,0.00027,2]
[322227702,1712897446074,-467.23792428,0.00026227,2]
[322227703,1712897446083,-503.63484363,0.00027,2]
[322227704,1712897446095,-3040.39570742,0.00027,2]
[322227705,1712897446130,-5009.06120089,0.00027,2]
[322227706,1712897446141,-830.6395,0.00027,2]
[322227707,1712897446152,-422.22153081,0.00027,2]
[322227708,1712897676765,648.78926949,0.00023,2]
[322227717,1712898236910,200.0,0.00024658,15]
[322227718,1712898356849,150.0,0.00022558,2]
[322227720,1712898546110,-154.82968734,0.00024393,2]
[322227721,1712898546131,-518.66999202,0.00024393,2]
[322227722,1712898546151,-1671.78403731,0.00024394,2]
[322227723,1712898546172,-300.0,0.00024394,2]
[322227724,1712898546194,-185.73445743,0.00024395,2]
[322227725,1712898546218,-467.23792428,0.00024395,2]
[322227726,1712898546238,-2581.83470807,0.00024395,2]
[322227727,1712898546259,-300.0,0.00024395,2]
[322227728,1712898546279,-887.37861442,0.00024396,2]
[322227729,1712898546300,-207.39373908,0.00024396,2]
[322227730,1712898546320,-3320.28304889,0.00024396,2]
[322227731,1712898548301,-1547.07230791,0.00024393,2]
[322227732,1712898548323,-19440.79410514,0.00024396,2]
[322227733,1712898548343,-470.34138776,0.00024397,2]
[322227734,1712898548363,-1931.90571888,0.00024398,2]
[322227735,1712898548384,-687.6463722,0.00024398,2]
[322227736,1712898548404,-188.75485878,0.00024398,2]
[322227737,1712898548424,-1965.39904468,0.00024399,2]
[322227738,1712898548446,-3293.28998897,0.00024401,2]
[322227739,1712898548467,-155.94198528,0.00024448,2]
[322227740,1712898548488,-335.51142885,0.0002445,2]
[322227741,1712898548509,-446.75242115,0.00024534,2]
[322227742,1712898548530,-18933.96106457,0.00024545,2]
[322227743,1712898548552,-182.96331992,0.0002455,2]
[322227744,1712898551161,-400.97950424,0.00024658,2]
[322227745,1712898551182,-335.51142884,0.00025162,2]
[322227756,1712898632750,-919.10156984,0.00025873,2]
[322227758,1712898632806,-1012.80414904,0.00025873,2]
[322227759,1712898632816,-185.73445743,0.00025873,2]
[322227760,1712898632825,-467.23792428,0.00025873,2]
[322227761,1712898632834,-335.51142884,0.00025874,2]
[322227762,1712898632844,-2581.83470807,0.00026577,2]
[322227763,1712898632854,-202.8348577,0.00026578,2]
[322227765,1712898632863,-335.51142884,0.00026585,2]
[322227766,1712898632872,-306.0,0.000266,2]
[322227768,1712898632882,-153.0,0.000266,2]
[322227770,1712898632891,-153.0,0.000266,2]
[322227771,1712898632900,-153.0,0.000266,2]
[322227772,1712898632910,-308.3478225,0.000269,2]
[322227773,1712898632919,-300.0,0.00026999,2]
[322227774,1712898632928,-91406.64744843,0.00027,2]
[322227775,1712898632940,-903.93884804,0.00027,2]
[322227776,1712898632951,-2038.94058846,0.00027,2]
[322227777,1712898632967,-490.5000166,0.00027,2]
[322227781,1712898638157,-711.96963966,0.00027,2]
[322227782,1712898638429,-31746.23478586,0.00027,2]
[322227792,1712898642765,-39498.88288,0.00027,2]